fUSD/lending_fUSD_20250716
["ID","MTS","AMOUNT","RATE_DAILY","PERIOD"]
[372562162,1752683936307,10000.0,0.0001816,2]
[372562163,1752683936329,10000.0,0.0001816,2]
[372562164,1752683936352,6926.85225041,0.0001816,2]
[372562165,1752684042660,200.0,0.00018148,2]
[372562166,1752684094634,250.0,0.00015,2]
[372562167,1752684095760,300.0,0.00017,2]
[372562169,1752684206339,696.65,0.00018014,2]
[372562170,1752684235207,1406.3,0.00018042,2]
[372562172,1752684269571,220.19774959,0.00018129,2]
[372562173,1752684269593,544.96889522,0.00018129,2]
[372562174,1752684323763,-176.89950148,0.00018412,2]
[372562175,1752684323797,-300.0,0.0001844,2]
[372562176,1752684323823,-1000.0,0.0001844,2]
[372562177,1752684323851,-765.16664481,0.00018453,2]
[372562178,1752684323879,-176.89950146,0.00018461,2]
[372562179,1752684323907,-176.89950146,0.0001851,2]
[372562180,1752684323934,-300.0,0.00018512,2]
[372562181,1752684323963,-1000.0,0.00018512,2]
[372562182,1752684323989,-1200.0,0.00018541,2]
[372562183,1752684324018,-167.0,0.00018541,2]
[372562184,1752684324045,-500.0,0.00018542,2]
[372562185,1752684324074,-500.0,0.00018542,2]
[372562186,1752684324099,-500.0,0.00018542,2]
[372562187,1752684324124,-500.0,0.00018542,2]
[372562188,1752684324148,-500.0,0.00018542,2]
[372562189,1752684324181,-424.48872303,0.00018542,2]
[372562190,1752684324211,-151.0,0.00018542,2]
[372562191,1752684324238,-151.0,0.00018542,2]
[372562192,1752684324265,-151.0,0.00018542,2]
[372562193,1752684324295,-151.0,0.00018542,2]
[372562194,1752684324321,-151.0,0.00018542,2]
[372562195,1752684324346,-151.0,0.00018542,2]
[372562196,1752684324376,-151.0,0.00018542,2]
[372562197,1752684324402,-290.69825997,0.00018542,2]
[372562198,1752684324428,-1200.0,0.00018551,2]
[372562199,1752684324455,-23900.0,0.00018554,2]
[372562200,1752684324480,-190.0,0.00018573,7]
[372562201,1752684324508,-247.46,0.000186,2]
[372562202,1752684324535,-28512.66322456,0.00018609,2]
[372562206,1752684470982,250.0,0.00018159,2]
[372562207,1752684571916,669.31,0.00018032,2]
[372562208,1752684581485,8535.72110478,0.00018161,2]
[372562209,1752684581509,1464.27889522,0.00018161,2]
[372562211,1752684632369,-587.76,0.00018329,2]
[372562212,1752684632379,-72.51213221,0.00018609,2]
[372562213,1752684632388,-247.46,0.0001861,2]
[372562214,1752684632398,-150.0,0.00018616,2]
[372562215,1752684632407,-150.0,0.00018616,2]
[372562217,1752684632417,-150.0,0.00018616,2]
[372562219,1752684632426,-150.0,0.00018616,2]
[372562221,1752684632436,-150.00000001,0.00018616,2]
[372562222,1752684632445,-300.0,0.00018618,2]
[372562223,1752684632454,-1200.0,0.00018618,2]
[372562224,1752684632464,-1889.72,0.00018619,2]
[372562226,1752684632474,-150.99,0.00018619,2]
[372562228,1752684632483,-247.46,0.00018619,2]
[372562229,1752684632493,-9354.09786778,0.0001862,2]
[372562230,1752684632505,-933.83213222,0.0001862,2]
[372562231,1752684632515,-247.46,0.00018629,2]
[372562232,1752684632524,-247.46,0.00018639,2]
[372562233,1752684632533,-247.46,0.00018649,2]
[372562234,1752684632543,-247.46,0.00018659,2]
[372562235,1752684632552,-247.46,0.00018668,2]
[372562236,1752684632562,-247.46,0.00018678,2]
[372562237,1752684632571,-247.46,0.00018688,2]
[372562238,1752684632580,-247.46,0.00018698,2]
[372562240,1752684632589,-167.92,0.00018699,2]
[372562242,1752684632599,-247.46,0.00018708,2]
[372562243,1752684632608,-217.45,0.00018708,2]
[372562244,1752684632617,-247.46,0.00018717,2]
[372562245,1752684632626,-247.46,0.00018727,2]
[372562246,1752684632635,-247.46,0.00018737,2]
[372562247,1752684632645,-294.08,0.00018739,2]
[372562248,1752684632654,-247.46,0.00018747,2]
[372562249,1752684632663,-247.46,0.00018756,2]
[372562250,1752684632675,-247.46,0.00018766,2]
[372562251,1752684632686,-247.46,0.00018776,2]
[372562252,1752684632697,-247.46,0.00018786,2]
[372562253,1752684632706,-696.65,0.00018915,2]
[372562254,1752684632715,-6931.25856653,0.00018971,2]
[372562255,1752684632725,-1000.0,0.00018999,2]
[372562256,1752684632734,-508.87429098,0.00018999,2]
[372562257,1752684632743,-621.66533168,0.00018999,2]
[372562258,1752684632753,-434.30711644,0.00018999,2]
[372562259,1752684632762,-500.0,0.00018999,2]
[372562260,1752684632771,-500.0,0.00018999,2]
[372562261,1752684632781,-500.0,0.00018999,2]
[372562262,1752684632789,-444.07484761,0.00018999,2]
[372562263,1752684632801,-104267.7,0.00019,2]
[372562264,1752684632811,-587.76,0.00019016,2]
[372562265,1752684632820,-150.0,0.0001903,2]
[372562266,1752684632829,-317.11,0.00019132,2]
[372562267,1752684632839,-765.16664482,0.00019146,2]
[372562268,1752684632848,-6931.25856645,0.00019153,2]
[372562269,1752684632858,-2294.51683,0.0001922,2]
[372562270,1752684632868,-508.69426525,0.00019319,2]
[372562271,1752684632878,-6931.25856645,0.00019334,2]
[372562272,1752684632888,-3567.9896372,0.00019406,2]
[372562273,1752684632898,-4061.4694619,0.00019406,2]
[372562274,1752684632908,-1314.56,0.0001942,2]
[372562275,1752684632917,-1314.56,0.0001943,2]
[372562276,1752684632927,-1314.56,0.0001944,2]
[372562277,1752684632937,-150.0,0.00019444,4]
[372562278,1752684632946,-230.59398541,0.0001945,2]
[372562279,1752684632980,-1083.96601459,0.0001945,2]
[372562280,1752684632990,-1314.56,0.0001946,2]
[372562281,1752684632999,-858.51121532,0.00019461,2]
[372562282,1752684633009,-1314.56,0.0001947,2]
[372562283,1752684633021,-1314.56,0.00019481,2]
[372562284,1752684633031,-987.762,0.0001949,2]
[372562285,1752684633041,-1314.56,0.00019491,2]
[372562286,1752684633053,-1314.56,0.00019501,2]
[372562287,1752684633063,-1314.56,0.00019511,2]
[372562288,1752684633073,-6931.25856645,0.00019516,2]
[372562289,1752684633083,-765.16664482,0.00019592,2]
[372562290,1752684633093,-207.4,0.00019638,2]
[372562291,1752684633103,-4031.856,0.00019638,2]
[372562292,1752684633113,-213.96859442,0.00019638,2]
[372562293,1752684633123,-151.0,0.00019638,2]
[372562294,1752684633133,-401.19111454,0.00019638,2]
[372562295,1752684633144,-151.14060875,0.00019638,2]
[372562296,1752684633154,-4181.034672,0.00019693,2]
[372562297,1752684633164,-6931.25856645,0.00019698,2]
[372562298,1752684633174,-587.76,0.00019703,2]
[372562299,1752684633183,-151.0,0.00019726,2]
[372562300,1752684633193,-167.92,0.00019728,2]
[372562301,1752684633202,-4335.73295486,0.00019748,2]
[372562302,1752684633211,-6056.39035668,0.00019799,2]
[372562303,1752684633220,-165.0453192,0.00019799,2]
[372562304,1752684633229,-1710.88545251,0.000198,2]
[372562305,1752684633239,-4631.5206,0.000198,2]
[372562306,1752684633248,-1800.0,0.000198,7]
[372562307,1752684633257,-4496.15507419,0.00019803,2]
[372562308,1752684633266,-696.65,0.00019816,2]
[372562309,1752684633276,-150.0,0.00019858,4]
[372562310,1752684633285,-4662.51281194,0.00019858,2]
[372562311,1752684633295,-1995.62819588,0.00019868,2]
[372562312,1752684633308,-1148.85747732,0.00019868,2]
[372562313,1752684633323,-266.15538136,0.00019868,2]
[372562314,1752684633334,-414.78537578,0.00019868,2]
[372562315,1752684633353,-291.12398853,0.00019868,2]
[372562316,1752684633444,-883.44958113,0.00019868,2]
[372562317,1752684633453,-93.58041887,0.00019879,2]
[372562318,1752684633465,-336.78435011,0.00019879,2]
[372562319,1752684633607,-6500.89379747,0.00019879,2]
[372562320,1752684633616,-840.27,0.0001988,2]
[372562321,1752684633626,-6056.39035663,0.00019889,2]
[372562322,1752684633636,-840.27,0.00019889,2]
[372562323,1752684633645,-2975.04244896,0.00019889,2]
[372562324,1752684633657,-2303.48170794,0.00019889,2]
[372562326,1752684638211,-1418906.73841041,0.00019889,2]
[372562327,1752684638222,-265.40957318,0.0001989,2]
[372562328,1752684638231,-489.93370453,0.00019898,2]
[372562329,1752684638241,-500.0,0.00019898,2]
[372562330,1752684638251,-178.03922732,0.00019898,2]
[372562331,1752684638261,-500.0,0.00019898,2]
[372562332,1752684638270,-354.17031984,0.00019898,2]
[372562333,1752684638280,-623.7421019,0.00019898,2]
[372562334,1752684638290,-670692.3867977,0.00019899,2]
[372562335,1752684638300,-36534.82343534,0.00019899,2]
[372562336,1752684638311,-244169.21626848,0.000199,2]
[372562337,1752684638321,-3600.0,0.000199,7]
[372562338,1752684638332,-4835.02578598,0.00019913,2]
[372562339,1752684638342,-166.36,0.00019936,2]
[372562340,1752684638352,-5013.92174006,0.00019968,2]
[372562341,1752684638362,-6056.39035663,0.00019978,2]
[372562342,1752684638372,-68661.57104392,0.0002,2]
[372562343,1752684638382,-789.67707095,0.0002,2]
[372562344,1752684638392,-44748.11138611,0.0002,2]
[372562346,1752684638403,-4041.68679653,0.0002,2]
[372562348,1752684638413,-4000.0,0.0002,4]
[372562350,1752684638423,-154.64,0.0002,2]
[372562352,1752684638434,-5199.43684444,0.00020023,2]
[372562354,1752684638443,-168.0,0.0002003,3]
[372562356,1752684638453,-6931.25856645,0.00020061,2]
[372562358,1752684638464,-6056.39035663,0.00020068,2]
[372562360,1752684638473,-5391.81600769,0.00020078,2]
[372562362,1752684638484,-2967.60644127,0.000201,2]
[372562364,1752684638494,-1012.0,0.000201,2]
[372562366,1752684638504,-1000.0,0.000201,2]
[372562368,1752684638513,-1000.0,0.000201,2]
[372562370,1752684638523,-5591.31319997,0.00020133,2]
[372562372,1752684638534,-182.73234824,0.00020141,2]
[372562374,1752684638544,-29999.99,0.00020145,2]
[372562376,1752684638554,-19999.99,0.00020145,2]
[372562378,1752684638564,-1000.0,0.00020151,2]
[372562380,1752684638574,-6056.39035663,0.00020158,2]
[372562383,1752684638583,-300.0,0.00020162,2]
[372562385,1752684638593,-2500.0,0.00020162,2]
[372562387,1752684638602,-5177.72,0.00020163,12]
[372562389,1752684638612,-248.5940893,0.00020186,2]
[372562391,1752684638621,-180.63,0.00020187,2]
[372562393,1752684638631,-5798.19178837,0.00020188,2]
[372562395,1752684638640,-165.0453192,0.00020203,2]
[372562397,1752684638650,-2294.51684,0.0002022,2]
[372562399,1752684638659,-216.0,0.0002023,2]
[372562401,1752684638669,-6931.25856645,0.00020243,2]
[372562403,1752684638679,-6012.72488454,0.00020243,2]
[372562405,1752684638688,-6056.39035663,0.00020247,2]
[372562407,1752684638698,-150.0,0.00020271,4]
[372562409,1752684638708,-151.0,0.00020274,2]
[372562411,1752684638717,-2202.9099,0.00020291,8]
[372562413,1752684638728,-6235.19570527,0.00020298,2]
[372562415,1752684638738,-5400.0,0.000203,7]
[372562417,1752684638747,-476.61752775,0.000203,7]
[372562419,1752684638757,-1000.0,0.000203,2]
[372562421,1752684638767,-838.7287696,0.000203,7]
[372562423,1752684638776,-210.72748344,0.000203,7]
[372562425,1752684638786,-420.0,0.00020302,2]
[372562427,1752684638796,-216.0,0.00020313,2]
[372562429,1752684638806,-317.11,0.00020324,2]
[372562431,1752684638816,-216.0,0.00020335,2]
[372562433,1752684638825,-6056.39035663,0.00020337,2]
[372562435,1752684638835,-6465.89794637,0.00020353,2]
[372562437,1752684638846,-919.37169619,0.00020389,2]
[372562440,1752684638856,-587.76,0.00020391,2]
[372562442,1752684638866,-1000.0,0.000204,2]
[372562444,1752684638876,-7200.0,0.000204,7]
[372562446,1752684638886,-1680.0,0.00020401,2]
[372562448,1752684638895,-6705.13617038,0.00020408,2]
[372562450,1752684638905,-4258.02,0.00020416,2]
[372562452,1752684638915,-6931.25856645,0.00020424,2]
[372562454,1752684638925,-216.0,0.00020425,2]
[372562456,1752684638935,-6056.39035663,0.00020427,2]
[372562458,1752684638944,-6953.22620868,0.00020463,2]
[372562460,1752684638954,-2500.0,0.0002047,2]
[372562462,1752684638963,-300.0,0.0002047,2]
[372562464,1752684638973,-1000.0,0.0002047,2]
[372562466,1752684638983,-2500.0,0.0002047,2]
[372562468,1752684638992,-250.0,0.0002047,2]
[372562470,1752684639002,-216.0,0.00020484,2]
[372562472,1752684639012,-9000.0,0.000205,7]
[372562474,1752684639025,-1000.0,0.000205,2]
[372562476,1752684639034,-3220.896,0.00020506,2]
[372562478,1752684639044,-6056.39035663,0.00020516,2]
[372562480,1752684639055,-7210.49557841,0.00020518,2]
[372562482,1752684639066,-568.78,0.00020521,2]
[372562484,1752684639076,-200.0,0.0002054,2]
[372562486,1752684639085,-2522.15,0.00020547,2]
[372562488,1752684639095,-7477.28391481,0.00020573,2]
[372562490,1752684639107,-5073.315,0.00020599,2]
[372562492,1752684639117,-1800.0,0.000206,7]
[372562494,1752684639126,-185.61,0.00020605,2]
[372562496,1752684639136,-434.95931774,0.00020605,2]
[372562498,1752684639146,-2555.34306003,0.00020605,2]
[372562500,1752684639156,-691.22610414,0.00020606,2]
[372562502,1752684639166,-260.403,0.00020606,2]
[372562504,1752684639176,-6931.25856645,0.00020606,2]
[372562506,1752684639185,-168.90242519,0.00020606,2]
[372562508,1752684639195,-180.22888037,0.00020606,2]
[372562510,1752684639204,-6056.39035663,0.00020606,2]
[372562512,1752684639214,-165.0453192,0.00020606,2]
[372562514,1752684639223,-4258.02,0.00020611,2]
[372562516,1752684639233,-167.61,0.00020613,2]
[372562518,1752684639242,-3948.0,0.00020626,2]
[372562520,1752684639252,-7753.94341966,0.00020628,2]
[372562523,1752684639262,-276.0,0.00020628,2]
[372562525,1752684639271,-168.0,0.00020655,2]
[372562527,1752684639281,-559.0,0.00020681,2]
[372562529,1752684639291,-150.0,0.00020685,4]
[372562530,1752684639301,-150.0,0.00020685,4]
[372562533,1752684639310,-5800.0,0.00020691,2]
[372562535,1752684639320,-3630.8708912,0.00020692,2]
[372562537,1752684639330,-4120.3923349,0.00020692,2]
[372562539,1752684639339,-150.0,0.00020694,2]
[372562541,1752684639348,-150.0,0.00020694,2]
[372562543,1752684639358,-500.0,0.00020694,2]
[372562545,1752684639367,-150.0,0.00020694,2]
[372562547,1752684639376,-500.0,0.00020694,2]
[372562549,1752684639386,-150.0,0.00020694,2]
[372562551,1752684639395,-500.0,0.00020694,2]
[372562553,1752684639404,-168.93931772,0.00020694,2]
[372562555,1752684639414,-500.0,0.00020694,2]
[372562557,1752684639423,-500.0,0.00020694,2]
[372562559,1752684639432,-150.0,0.00020694,2]
[372562561,1752684639442,-500.0,0.00020694,2]
[372562563,1752684639451,-500.0,0.00020694,2]
[372562565,1752684639460,-150.0,0.00020694,2]
[372562567,1752684639470,-500.0,0.00020694,2]
[372562569,1752684639479,-150.0,0.00020694,2]
[372562571,1752684639489,-150.0,0.00020694,2]
[372562573,1752684639498,-500.0,0.00020694,2]
[372562575,1752684639507,-500.0,0.00020694,2]
[372562577,1752684639516,-150.0,0.00020694,2]
[372562579,1752684639526,-500.0,0.00020694,2]
[372562581,1752684639536,-150.0,0.00020694,2]
[372562583,1752684639545,-1595.0,0.00020694,2]
[372562585,1752684639559,-500.0,0.00020694,2]
[372562587,1752684639570,-4515.0,0.00020694,2]
[372562589,1752684639580,-150.0,0.00020694,2]
[372562591,1752684639589,-476.0,0.00020694,2]
[372562593,1752684639599,-2238.0,0.00020694,2]
[372562595,1752684639609,-500.0,0.00020694,2]
[372562597,1752684639618,-500.0,0.00020694,2]
[372562599,1752684639628,-500.0,0.00020694,2]
[372562602,1752684639638,-500.0,0.00020694,2]
[372562604,1752684639647,-551.0,0.00020694,2]
[372562606,1752684639657,-150.0,0.00020694,2]
[372562608,1752684639667,-500.0,0.00020694,2]
[372562610,1752684639676,-150.0,0.00020694,2]
[372562612,1752684639685,-200.0,0.00020694,2]
[372562614,1752684639694,-625.0,0.00020694,2]
[372562616,1752684639704,-54881.14829154,0.00020699,2]
[372562618,1752684639714,-1000.0,0.00020699,2]
[372562620,1752684639723,-5800.0,0.000207,2]
[372562622,1752684639733,-2560.10248943,0.000207,7]
[372562624,1752684639742,-1593.97439544,0.000207,2]
[372562626,1752684639751,-500.0,0.000207,2]
[372562628,1752684639761,-1181.0,0.000207,2]
[372562630,1752684639770,-1800.0,0.000207,7]
[372562632,1752684639779,-216.0,0.00020702,2]
[372562634,1752684639790,-1000.0,0.00020705,2]
[372562636,1752684639799,-1000.0,0.00020705,3]
[372562638,1752684639812,-1000.0,0.00020705,4]
[372562640,1752684639822,-1000.0,0.00020705,5]
[372562642,1752684639832,-150.0,0.00020705,2]
[372562644,1752684639842,-774.26305295,0.00020705,2]
[372562646,1752684639851,-276.0,0.00020705,2]
[372562648,1752684639861,-581047.0384343,0.00020706,2]
[372562651,1752684639875,-303.62614934,0.00020706,2]
[372562653,1752684639886,-2756.97143506,0.00020706,2]
[372562657,1752684639918,-785.03255407,0.00020706,2]
[372562731,1752684640775,-300.0,0.00019889,2]
[372562733,1752684640785,-143.13092382,0.00020706,2]
[372562736,1752684640809,-1613.532692,0.00020706,2]
[372562739,1752684640828,-690.48,0.00020706,2]
[372562742,1752684640840,-360.214566,0.00020706,2]
[372562860,1752684641992,-3599.4170043,0.00020706,2]
[372562862,1752684642004,-587.27172732,0.00020706,2]
[372562865,1752684642024,-597.91250483,0.00020706,2]
[372562868,1752684642037,-1517.46946338,0.00020706,2]
[372562877,1752684642119,-491.08843674,0.00020706,2]
[372562881,1752684642146,-1092.27862809,0.00020706,2]
[372562886,1752684642187,-1646.9000004,0.00020706,2]
[372562888,1752684642198,-576.30504558,0.00020706,2]
[372562891,1752684642210,-1173.70891906,0.00020706,2]
[372563011,1752684643140,-260.72,0.00019688,2]
[372563013,1752684643149,-260.72,0.00019879,2]
[372563015,1752684643159,-75.06786355,0.00019879,2]
[372563017,1752684643171,-185.65213645,0.00019879,2]
[372563019,1752684643181,-260.72,0.00019879,2]
[372563021,1752684643190,-33660.3826441,0.00020706,2]
[372563024,1752684643202,-263.95605343,0.00020706,2]
[372563026,1752684643213,-300.0,0.00020706,2]
[372563028,1752684643224,-673.14206966,0.00020706,2]
[372563038,1752684643308,-1319.2,0.00020706,2]
[372563040,1752684643320,-3442.40000126,0.00020706,2]
[372563048,1752684643387,-76.05984112,0.00020706,2]
[372563050,1752684643398,-491.43914169,0.00020706,2]
[372563056,1752684643447,-328.22514,0.00020706,2]
[372563058,1752684643458,-1198.3972,0.00020706,2]
[372563062,1752684643487,-260.72,0.00019879,2]
[372563064,1752684643496,-1222.06980331,0.00020706,2]
[372563312,1752684646047,-500.0,0.00019178,2]
[372563314,1752684646058,-284.05677938,0.00019178,2]
[372563317,1752684646069,-3990.74322062,0.00020706,2]
[372563321,1752684646101,-278.71319667,0.00020706,2]
[372563329,1752684646158,-9624.71158964,0.00020706,2]
[372563331,1752684646169,-1689.21491958,0.00020706,2]
[372563333,1752684646181,-6543.3,0.00020706,2]
[372563335,1752684646193,-444860.73042061,0.00020706,2]
[372563338,1752684646205,-146683.10590492,0.00020706,2]
[372563345,1752684646271,-11169.19195613,0.00020706,2]
[372563349,1752684646294,-200.48898728,0.00020706,2]
[372563399,1752684646765,-28302.93206805,0.00020706,2]
[372564585,1752684658927,512.0,0.00017813,2]
[372565441,1752684688820,502.0,0.00017813,2]
[372565443,1752684709778,170.28,0.00013699,2]
[372565444,1752684724845,370.0,0.000231,120]
[372565445,1752684734541,1774.0,0.000231,120]
[372565446,1752684735339,1495.0,0.000231,120]
[372565447,1752684736144,1099.0,0.000231,120]
[372565448,1752684776455,955.0,0.000231,120]
[372565449,1752684779474,438.0,0.000231,120]
[372565450,1752684847317,638.5186645,0.000231,120]
[372565451,1752684937081,-621.70569719,0.0001939,2]
[372565452,1752684937112,-500.0750429,0.0001949,2]
[372565453,1752684937136,-27.21925991,0.0001949,7]
[372565454,1752684959152,508.0,0.00017813,2]
[372565455,1752685006627,685.24551084,0.00023101,120]
[372565459,1752685736370,494.0,0.000231,120]
[372565460,1752685775305,161.76,0.00013699,2]
[372565462,1752685803925,428.0,0.000231,120]
[372565464,1752685832278,-151.0,0.00018227,2]
[372565465,1752685832288,-601.29818263,0.00018309,2]
[372565466,1752685832335,-2475.883476,0.00018309,2]
[372565467,1752685832347,-2059.01589983,0.00018309,2]
[372565468,1752685832360,-2418.24133946,0.00018309,2]
[372565469,1752685832374,-150.0,0.00018409,2]
[372565470,1752685832384,-300.0,0.00018409,2]
[372565471,1752685832394,-1000.0,0.00018453,2]
[372565472,1752685832403,-1000.0,0.00018454,2]
[372565473,1752685832414,-55.94256654,0.00018487,2]
[372565474,1752685832606,-244.05743346,0.00018487,2]
[372565475,1752685832617,-1000.0,0.00018523,2]
[372565476,1752685832627,-445.82,0.00018544,2]
[372565477,1752685832636,-202.04250211,0.0001855,2]
[372565478,1752685832647,-187.95749789,0.0001855,2]
[372565479,1752685832657,-300.0,0.00018551,2]
[372565480,1752685832666,-1200.0,0.00018551,2]
[372565481,1752685832676,-300.0,0.00018551,2]
[372565482,1752685832685,-260.14724728,0.00018552,2]
[372565483,1752685832697,-2069.15284255,0.00018552,2]
[372565486,1752685832758,-21570.69991017,0.00018552,2]
[372565487,1752685832767,-881.86,0.00018576,2]
[372565489,1752685832776,-167.64330956,0.0001858,2]
[372565491,1752685832786,-3173.47,0.00018609,2]
[372565493,1752685832795,-150.0,0.00018616,2]
[372565495,1752685832804,-150.0,0.00018616,2]
[372565496,1752685832813,-150.0,0.00018616,2]
[372565498,1752685832823,-150.0,0.00018616,2]
[372565501,1752685832834,-150.0,0.00018616,2]
[372565503,1752685832843,-150.0,0.00018616,2]
[372565505,1752685832852,-243.05809952,0.0001871,2]
[372565506,1752685832862,-931.0,0.00019,2]
[372565509,1752685832871,-1000.0,0.00019001,2]
[372565511,1752685832881,-512.0,0.00019032,2]
[372565513,1752685832890,-503.0,0.00019053,2]
[372565516,1752685832900,-162.4,0.00019065,2]
[372565520,1752685832909,-762.98,0.00019081,2]
[372565523,1752685832919,-200.0,0.00019082,2]
[372565526,1752685832929,-3026.34,0.0001911,2]
[372565529,1752685832939,-150.0,0.00019134,2]
[372565532,1752685832949,-156.587,0.00019178,2]
[372565535,1752685832958,-217.45,0.00019196,2]
[372565537,1752685832968,-225.91,0.00019232,2]
[372565539,1752685832977,-4031.856,0.0001926,2]
[372565541,1752685832986,-1278.90745313,0.0001926,2]
[372565543,1752685832995,-207.4,0.0001926,2]
[372565545,1752685833004,-4181.034672,0.00019315,2]
[372565547,1752685833014,-213.96859442,0.00019345,2]
[372565549,1752685833025,-401.19111454,0.00019345,2]
[372565551,1752685833034,-151.0,0.00019345,2]
[372565553,1752685833044,-151.0,0.00019345,2]
[372565555,1752685833053,-151.0,0.00019345,2]
[372565557,1752685833063,-151.0,0.00019345,2]
[372565559,1752685833072,-151.0,0.00019345,2]
[372565561,1752685833083,-151.0,0.00019345,2]
[372565563,1752685833092,-151.0,0.00019345,2]
[372565565,1752685833102,-500.0,0.00019345,2]
[372565566,1752685833112,-500.0,0.00019345,2]
[372565568,1752685833122,-151.0,0.00019345,2]
[372565570,1752685833131,-500.0,0.00019345,2]
[372565572,1752685833141,-151.0,0.00019345,2]
[372565573,1752685833152,-65.24048052,0.00019345,2]
[372565574,1752685833165,-434.75951948,0.00019345,2]
[372565575,1752685833174,-500.0,0.00019345,2]
[372565576,1752685833184,-169.78981062,0.00019345,2]
[372565577,1752685833194,-500.0,0.00019345,2]
[372565578,1752685833203,-367.99658099,0.00019345,2]
[372565579,1752685833215,-264.50910539,0.00019345,2]
[372565580,1752685833225,-1000.0,0.00019355,2]
[372565581,1752685833235,-348.04233995,0.00019356,2]
[372565582,1752685833247,-3984.73526069,0.00019356,2]
[372565583,1752685833259,-1908.12383608,0.00019356,2]
[372565584,1752685833291,-2083.69925387,0.00019356,2]
[372565585,1752685833315,-7437.99493772,0.00019356,2]
[372565586,1752685833335,-864.57437169,0.00019356,2]
[372565587,1752685833345,-176.15,0.00019366,2]
[372565588,1752685833355,-835.74472559,0.0001937,2]
[372565589,1752685833371,-846.43026503,0.0001937,2]
[372565590,1752685833383,-1121.037,0.0001937,2]
[372565591,1752685833395,-1532.52096424,0.0001937,2]
[372565592,1752685833405,-176.15,0.00019376,2]
[372565593,1752685833415,-410.3186849,0.00019385,2]
[372565594,1752685833425,-176.15,0.00019386,2]
[372565595,1752685833434,-176.15,0.00019397,2]
[372565596,1752685833446,-176.15,0.00019407,2]
[372565597,1752685833456,-176.15,0.00019417,2]
[372565598,1752685833467,-4496.15507419,0.00019425,2]
[372565599,1752685833477,-176.15,0.00019427,2]
[372565600,1752685833487,-176.15,0.00019437,2]
[372565601,1752685833497,-176.15,0.00019448,2]
[372565602,1752685833507,-176.15,0.00019458,2]
[372565603,1752685833516,-176.15,0.00019468,2]
[372565604,1752685833525,-176.15,0.00019478,2]
[372565605,1752685833536,-4662.51281194,0.0001948,2]
[372565606,1752685833545,-176.15,0.00019488,2]
[372565607,1752685833555,-162.78074009,0.0001949,7]
[372565608,1752685833565,-176.15,0.00019499,2]
[372565609,1752685833574,-176.15,0.00019509,2]
[372565610,1752685833583,-176.15,0.00019519,2]
[372565611,1752685833593,-176.15,0.00019529,2]
[372565612,1752685833603,-4835.02578598,0.00019535,2]
[372565613,1752685833613,-176.15,0.00019539,2]
[372565614,1752685833623,-176.15,0.0001955,2]
[372565615,1752685833632,-176.15,0.0001956,2]
[372565616,1752685833642,-1000.0,0.00019577,2]
[372565617,1752685833652,-216.0083164,0.00019589,2]
[372565618,1752685833663,-5013.92174006,0.0001959,2]
[372565619,1752685833674,-5199.43684444,0.00019645,2]
[372565620,1752685833685,-150.0,0.00019651,4]
[372565621,1752685833695,-5391.81600769,0.000197,2]
[372565622,1752685833706,-151.0,0.00019726,2]
[372565623,1752685833716,-1545.36514161,0.00019755,2]
[372565624,1752685833727,-4447.5584,0.00019799,2]
[372565625,1752685833740,-221.88543242,0.00019893,2]
[372565626,1752685833752,-1796.55382219,0.000199,2]
[372565627,1752685833764,-2226.13772185,0.00019904,2]
[372565628,1752685833776,-158.76,0.00019966,2]